fUST/lending_fUST_20251209
["ID","MTS","AMOUNT","RATE_DAILY","PERIOD"]
[397787559,1765229438525,-500.0,7.143e-05,2]
[397787561,1765229438535,-500.0,7.143e-05,2]
[397787563,1765229438544,-500.0,7.143e-05,2]
[397787565,1765229438555,-530.9242103,7.143e-05,2]
[397787567,1765229438564,-500.0,7.143e-05,2]
[397787569,1765229438573,-500.0,7.143e-05,2]
[397787571,1765229438583,-279.04205316,7.143e-05,2]
[397787573,1765229438592,-500.0,7.143e-05,2]
[397787575,1765229438602,-500.0,7.143e-05,2]
[397787577,1765229438612,-1693.50903261,7.144e-05,2]
[397787579,1765229438624,-475.9999938,7.144e-05,2]
[397787582,1765229438635,-528.78757581,7.144e-05,2]
[397787584,1765229438646,-776.7065474,7.144e-05,2]
[397787588,1765229438674,-377101.68966515,7.144e-05,2]
[397787590,1765229438683,-267.712,7.164e-05,2]
[397787592,1765229438692,-180.226,7.164e-05,2]
[397787594,1765229438702,-300.0,7.286e-05,2]
[397787596,1765229438711,-300.0,7.286e-05,2]
[397787598,1765229438721,-300.0,7.286e-05,2]
[397787600,1765229438730,-300.0,7.286e-05,2]
[397787602,1765229438740,-300.0,7.286e-05,2]
[397787604,1765229438750,-300.0,7.286e-05,2]
[397787606,1765229438759,-300.0,7.286e-05,2]
[397787608,1765229438768,-300.0,7.286e-05,2]
[397787609,1765229438777,-300.0,7.286e-05,2]
[397787611,1765229438787,-300.0,7.286e-05,2]
[397787613,1765229438796,-300.0,7.286e-05,2]
[397787615,1765229438807,-300.0,7.286e-05,2]
[397787617,1765229438816,-300.0,7.286e-05,2]
[397787619,1765229438826,-300.0,7.286e-05,2]
[397787621,1765229438836,-300.0,7.286e-05,2]
[397787623,1765229438845,-600.0,7.286e-05,2]
[397787625,1765229438854,-321.92371411,7.332e-05,2]
[397787627,1765229438864,-16893.37736006,7.344e-05,2]
[397787629,1765229438874,-500.0,7.38e-05,2]
[397787631,1765229438888,-500.0,7.38e-05,2]
[397787634,1765229438898,-500.0,7.38e-05,2]
[397787636,1765229438908,-500.0,7.38e-05,2]
[397787638,1765229438919,-228.1223099,7.38e-05,2]
[397787640,1765229438928,-877.69072772,7.538e-05,3]
[397787642,1765229438939,-307.68306344,7.755e-05,2]
[397787643,1765229438948,-960.63486555,7.78e-05,2]
[397787645,1765229438958,-420.0,7.857e-05,2]
[397787648,1765229438968,-1305.43,8.004e-05,2]
[397787650,1765229438978,-720.0,8.015e-05,2]
[397787652,1765229438987,-809.40875281,8.03e-05,2]
[397787654,1765229438997,-1359.0,8.091e-05,2]
[397787656,1765229439007,-631.0,8.091e-05,2]
[397787658,1765229439017,-2155.0,8.091e-05,2]
[397787660,1765229439028,-415.0,8.091e-05,2]
[397787661,1765229439041,-41860.3567555,8.181e-05,2]
[397787664,1765229439051,-10979.6733036,8.181e-05,2]
[397787665,1765229439063,-593.0,8.182e-05,2]
[397787668,1765229439074,-500.0,8.182e-05,2]
[397787669,1765229439085,-578.0,8.182e-05,2]
[397787671,1765229439095,-151.0,8.182e-05,2]
[397787673,1765229439105,-151.0,8.182e-05,2]
[397787674,1765229439115,-151.0,8.182e-05,2]
[397787675,1765229439125,-500.0,8.182e-05,2]
[397787677,1765229439136,-152.05336779,8.182e-05,2]
[397787680,1765229439146,-151.0,8.182e-05,2]
[397787681,1765229439155,-151.0,8.182e-05,2]
[397787684,1765229439165,-151.52713657,8.182e-05,2]
[397787686,1765229439175,-500.0,8.182e-05,2]
[397787688,1765229439184,-151.0,8.182e-05,2]
[397787690,1765229439194,-250.0,8.209e-05,3]
[397787692,1765229439203,-250.0,8.218e-05,2]
[397787694,1765229439214,-500.0,8.219e-05,2]
[397787696,1765229439224,-500.0,8.219e-05,2]
[397787698,1765229439234,-610.7349498,8.219e-05,2]
[397787700,1765229439244,-382.2941732,8.219e-05,2]
[397787702,1765229439254,-500.0,8.219e-05,2]
[397787704,1765229439264,-500.0,8.219e-05,2]
[397787706,1765229439274,-500.0,8.219e-05,2]
[397787708,1765229439284,-500.0,8.219e-05,2]
[397787710,1765229439293,-500.0,8.219e-05,2]
[397787712,1765229439303,-500.0,8.219e-05,2]
[397787714,1765229439313,-546.25,8.219e-05,2]
[397787716,1765229439323,-500.0,8.219e-05,2]
[397787718,1765229439332,-500.0,8.219e-05,2]
[397787720,1765229439342,-500.0,8.219e-05,2]
[397787722,1765229439352,-500.0,8.219e-05,2]
[397787724,1765229439362,-500.0,8.219e-05,2]
[397787726,1765229439373,-500.0,8.219e-05,2]
[397787728,1765229439384,-500.3583166,8.219e-05,2]
[397787730,1765229439394,-500.0,8.219e-05,2]
[397787732,1765229439405,-500.0,8.219e-05,2]
[397787734,1765229439415,-500.0,8.219e-05,2]
[397787736,1765229439425,-500.0,8.219e-05,2]
[397787738,1765229439435,-762.68,8.219e-05,2]
[397787740,1765229439445,-500.87963516,8.219e-05,2]
[397787742,1765229439454,-500.0,8.219e-05,2]
[397787744,1765229439464,-500.0,8.219e-05,2]
[397787746,1765229439474,-500.18782722,8.219e-05,2]
[397787748,1765229439484,-500.0,8.219e-05,2]
[397787750,1765229439493,-500.0,8.219e-05,2]
[397787752,1765229439503,-500.0,8.219e-05,2]
[397787754,1765229439512,-500.0,8.219e-05,2]
[397787756,1765229439522,-500.0,8.219e-05,2]
[397787758,1765229439531,-500.0,8.219e-05,2]
[397787760,1765229439540,-500.0,8.219e-05,2]
[397787763,1765229439556,-500.0,8.219e-05,2]
[397787765,1765229439567,-613.37,8.219e-05,2]
[397787767,1765229439576,-500.0,8.219e-05,2]
[397787769,1765229439586,-500.0,8.219e-05,2]
[397787771,1765229439596,-500.0,8.219e-05,2]
[397787773,1765229439605,-500.0,8.219e-05,2]
[397787775,1765229439615,-500.0,8.219e-05,2]
[397787777,1765229439626,-613.65,8.219e-05,2]
[397787779,1765229439635,-500.0,8.219e-05,2]
[397787781,1765229439645,-500.0,8.219e-05,2]
[397787783,1765229439654,-1042.27,8.219e-05,2]
[397787785,1765229439664,-500.0,8.219e-05,2]
[397787787,1765229439675,-500.0,8.219e-05,2]
[397787790,1765229439684,-500.0,8.219e-05,2]
[397787792,1765229439694,-500.18665426,8.219e-05,2]
[397787794,1765229439703,-500.0,8.219e-05,2]
[397787796,1765229439712,-500.0,8.219e-05,2]
[397787798,1765229439723,-500.0,8.219e-05,2]
[397787800,1765229439732,-500.0,8.219e-05,2]
[397787802,1765229439742,-500.0,8.219e-05,2]
[397787804,1765229439752,-500.0,8.219e-05,2]
[397787806,1765229439761,-500.0,8.219e-05,2]
[397787808,1765229439771,-500.0,8.219e-05,2]
[397787810,1765229439780,-500.0,8.219e-05,2]
[397787812,1765229439790,-500.0,8.219e-05,2]
[397787814,1765229439799,-500.0,8.219e-05,2]
[397787816,1765229439811,-500.0,8.219e-05,2]
[397787818,1765229439821,-500.0,8.219e-05,2]
[397787820,1765229439830,-500.0,8.219e-05,2]
[397787822,1765229439839,-500.0,8.219e-05,2]
[397787824,1765229439848,-557.63038115,8.219e-05,2]
[397787826,1765229439858,-583.23,8.219e-05,2]
[397787828,1765229439867,-500.0,8.219e-05,2]
[397787830,1765229439877,-500.0,8.219e-05,2]
[397787832,1765229439886,-500.0,8.219e-05,2]
[397787834,1765229439896,-500.0,8.219e-05,2]
[397787836,1765229439905,-500.0,8.219e-05,2]
[397787839,1765229439915,-595.32297781,8.219e-05,2]
[397787841,1765229439925,-500.0,8.219e-05,2]
[397787843,1765229439935,-500.93273261,8.219e-05,2]
[397787845,1765229439944,-500.0,8.219e-05,2]
[397787847,1765229439953,-500.0,8.219e-05,2]
[397787850,1765229439963,-500.0,8.219e-05,2]
[397787852,1765229439972,-500.0,8.219e-05,2]
[397787854,1765229439981,-500.0,8.219e-05,2]
[397787856,1765229439990,-500.0,8.219e-05,2]
[397787857,1765229439999,-912.12,8.219e-05,2]
[397787859,1765229440008,-730.51,8.219e-05,2]
[397787862,1765229440018,-500.0,8.219e-05,2]
[397787864,1765229440031,-500.0,8.219e-05,2]
[397787865,1765229440039,-500.0,8.219e-05,2]
[397787867,1765229440049,-500.0,8.219e-05,2]
[397787870,1765229440062,-500.0,8.219e-05,2]
[397787872,1765229440071,-500.0,8.219e-05,2]
[397787874,1765229440080,-500.0,8.219e-05,2]
[397787876,1765229440089,-500.0,8.219e-05,2]
[397787879,1765229440100,-500.0,8.219e-05,2]
[397787880,1765229440111,-500.0,8.219e-05,2]
[397787882,1765229440120,-500.0,8.219e-05,2]
[397787884,1765229440130,-500.0,8.219e-05,2]
[397787886,1765229440139,-210.71067119,8.219e-05,2]
[397787888,1765229440149,-500.0,8.219e-05,2]
[397787890,1765229440158,-256.00853438,8.219e-05,2]
[397787893,1765229440168,-500.0,8.219e-05,2]
[397787895,1765229440178,-600.62,8.219e-05,2]
[397787897,1765229440189,-500.0,8.219e-05,2]
[397787899,1765229440199,-500.0,8.219e-05,2]
[397787901,1765229440209,-500.0,8.219e-05,2]
[397787903,1765229440218,-500.0,8.219e-05,2]
[397787905,1765229440228,-500.0,8.219e-05,2]
[397787907,1765229440239,-500.0,8.219e-05,2]
[397787909,1765229440248,-646.97093772,8.219e-05,2]
[397787911,1765229440257,-500.0,8.219e-05,2]
[397787913,1765229440267,-913.59,8.219e-05,2]
[397787915,1765229440278,-500.0,8.219e-05,2]
[397787917,1765229440287,-500.84,8.219e-05,2]
[397787919,1765229440298,-500.0,8.219e-05,2]
[397787921,1765229440311,-500.0,8.219e-05,2]
[397787923,1765229440321,-500.0,8.219e-05,2]
[397787925,1765229440331,-518.11,8.219e-05,2]
[397787927,1765229440341,-500.0,8.219e-05,2]
[397787929,1765229440350,-599.9894501,8.219e-05,2]
[397787931,1765229440360,-500.0,8.219e-05,2]
[397787933,1765229440370,-500.0,8.219e-05,2]
[397787935,1765229440380,-500.0,8.219e-05,2]
[397787937,1765229440389,-500.0,8.219e-05,2]
[397787939,1765229440398,-500.0,8.219e-05,2]
[397787941,1765229440407,-500.0,8.219e-05,2]
[397787943,1765229440417,-500.0,8.219e-05,2]
[397787945,1765229440427,-500.0,8.219e-05,2]
[397787947,1765229440436,-500.0,8.219e-05,2]
[397787949,1765229440446,-555.24048553,8.219e-05,2]
[397787951,1765229440456,-500.0,8.219e-05,2]
[397787953,1765229440465,-500.0,8.219e-05,2]
[397787955,1765229440474,-500.0,8.219e-05,2]
[397787957,1765229440484,-500.0,8.219e-05,2]
[397787959,1765229440493,-500.0,8.219e-05,2]
[397787961,1765229440502,-500.0,8.219e-05,2]
[397787963,1765229440511,-500.0,8.219e-05,2]
[397787965,1765229440520,-633.51,8.219e-05,2]
[397787967,1765229440530,-500.0,8.219e-05,2]
[397787969,1765229440539,-500.0,8.219e-05,2]
[397787971,1765229440549,-500.0,8.219e-05,2]
[397787973,1765229440559,-500.0,8.219e-05,2]
[397787975,1765229440569,-500.0,8.219e-05,2]
[397787977,1765229440579,-500.0,8.219e-05,2]
[397787979,1765229440588,-787.42,8.219e-05,2]
[397787981,1765229440597,-593.39,8.219e-05,2]
[397787983,1765229440606,-795.1,8.219e-05,2]
[397787985,1765229440615,-500.0,8.219e-05,2]
[397787987,1765229440624,-500.0,8.219e-05,2]
[397787989,1765229440634,-500.0,8.219e-05,2]
[397787991,1765229440643,-595.45386244,8.219e-05,2]
[397787993,1765229440653,-500.0,8.219e-05,2]
[397787996,1765229440663,-500.0,8.219e-05,2]
[397787998,1765229440672,-500.0,8.219e-05,2]
[397788000,1765229440681,-500.0,8.219e-05,2]
[397788002,1765229440691,-500.0,8.219e-05,2]
[397788004,1765229440700,-500.0,8.219e-05,2]
[397788006,1765229440709,-500.0,8.219e-05,2]
[397788008,1765229440719,-568.12911828,8.219e-05,2]
[397788010,1765229440728,-500.0,8.219e-05,2]
[397788012,1765229440739,-920.16,8.219e-05,2]
[397788013,1765229440748,-979.32,8.219e-05,2]
[397788016,1765229440757,-1202.12,8.219e-05,2]
[397788018,1765229440767,-500.0,8.219e-05,2]
[397788020,1765229440776,-500.0,8.219e-05,2]
[397788022,1765229440787,-500.0,8.219e-05,2]
[397788024,1765229440796,-500.0,8.219e-05,2]
[397788026,1765229440805,-252.25852342,8.219e-05,2]
[397788028,1765229440815,-720.72,8.219e-05,2]
[397788029,1765229440824,-500.0,8.219e-05,2]
[397788032,1765229440833,-500.0,8.219e-05,2]
[397788034,1765229440844,-558.85,8.219e-05,2]
[397788036,1765229440853,-500.0,8.219e-05,2]
[397788038,1765229440862,-500.0,8.219e-05,2]
[397788040,1765229440871,-500.0,8.219e-05,2]
[397788042,1765229440880,-169.61,8.219e-05,2]
[397788044,1765229440890,-500.0,8.219e-05,2]
[397788046,1765229440899,-500.0,8.219e-05,2]
[397788048,1765229440908,-500.0,8.219e-05,2]
[397788050,1765229440917,-500.0,8.219e-05,2]
[397788052,1765229440926,-500.0,8.219e-05,2]
[397788054,1765229440936,-500.37462614,8.219e-05,2]
[397788056,1765229440946,-500.0,8.219e-05,2]
[397788058,1765229440956,-500.0,8.219e-05,2]
[397788060,1765229440965,-500.0,8.219e-05,2]
[397788062,1765229440975,-500.0,8.219e-05,2]
[397788064,1765229440985,-500.0,8.219e-05,2]
[397788066,1765229440994,-1049.39,8.219e-05,2]
[397788068,1765229441003,-500.0,8.219e-05,2]
[397788070,1765229441013,-500.63739317,8.219e-05,2]
[397788072,1765229441022,-793.0,8.219e-05,2]
[397788074,1765229441035,-500.0,8.219e-05,2]
[397788076,1765229441045,-695.69,8.219e-05,2]
[397788078,1765229441056,-500.0,8.219e-05,2]
[397788080,1765229441065,-500.0,8.219e-05,2]
[397788082,1765229441074,-500.0,8.219e-05,2]
[397788084,1765229441083,-500.0,8.219e-05,2]
[397788086,1765229441093,-500.0,8.219e-05,2]
[397788088,1765229441103,-500.0,8.219e-05,2]
[397788090,1765229441114,-500.0,8.219e-05,2]
[397788092,1765229441125,-1335.66,8.219e-05,2]
[397788094,1765229441135,-500.0,8.219e-05,2]
[397788095,1765229441145,-2009.99,8.219e-05,2]
[397788098,1765229441155,-500.0,8.219e-05,2]
[397788100,1765229441165,-500.0,8.219e-05,2]
[397788102,1765229441175,-500.0,8.219e-05,2]
[397788104,1765229441184,-508.89362557,8.219e-05,2]
[397788106,1765229441194,-1227.88,8.219e-05,2]
[397788108,1765229441204,-1360.74,8.219e-05,2]
[397788110,1765229441213,-500.0,8.219e-05,2]
[397788112,1765229441222,-500.0,8.219e-05,2]
[397788114,1765229441232,-500.0,8.219e-05,2]
[397788116,1765229441241,-500.24085333,8.219e-05,2]
[397788118,1765229441251,-500.0,8.219e-05,2]
[397788120,1765229441260,-500.0,8.219e-05,2]
[397788122,1765229441269,-500.0,8.219e-05,2]
[397788124,1765229441279,-712.13,8.219e-05,2]
[397788126,1765229441288,-801.8,8.219e-05,2]
[397788128,1765229441297,-500.0,8.219e-05,2]
[397788130,1765229441308,-500.0,8.219e-05,2]
[397788132,1765229441317,-500.33076219,8.219e-05,2]
[397788134,1765229441327,-509.70431257,8.219e-05,2]
[397788136,1765229441337,-500.0,8.219e-05,2]
[397788138,1765229441346,-500.29343101,8.219e-05,2]
[397788140,1765229441355,-500.0,8.219e-05,2]
[397788142,1765229441365,-500.0,8.219e-05,2]
[397788144,1765229441374,-500.0,8.219e-05,2]
[397788146,1765229441383,-500.0,8.219e-05,2]
[397788148,1765229441393,-805.04,8.219e-05,2]
[397788150,1765229441402,-500.0,8.219e-05,2]
[397788152,1765229441411,-500.0,8.219e-05,2]
[397788154,1765229441421,-664.55,8.219e-05,2]
[397788156,1765229441430,-500.0,8.219e-05,2]
[397788158,1765229441439,-500.0,8.219e-05,2]
[397788160,1765229441448,-500.0,8.219e-05,2]
[397788162,1765229441457,-500.0,8.219e-05,2]
[397788164,1765229441467,-500.0,8.219e-05,2]
[397788166,1765229441476,-1052.66,8.219e-05,2]
[397788168,1765229441486,-500.0,8.219e-05,2]
[397788170,1765229441495,-500.0,8.219e-05,2]
[397788172,1765229441504,-500.0,8.219e-05,2]
[397788174,1765229441513,-500.0,8.219e-05,2]
[397788176,1765229441523,-633.30867487,8.219e-05,2]
[397788178,1765229441532,-500.0,8.219e-05,2]
[397788180,1765229441541,-444.66644927,8.219e-05,2]
[397788182,1765229441551,-640.48,8.219e-05,2]
[397788184,1765229441562,-501.23199786,8.219e-05,2]
[397788186,1765229441571,-825.24,8.219e-05,2]
[397788188,1765229441581,-500.0,8.219e-05,2]
[397788190,1765229441589,-500.0,8.219e-05,2]
[397788193,1765229441607,-500.0,8.219e-05,2]
[397788196,1765229441618,-500.0,8.219e-05,2]
[397788198,1765229441627,-500.0,8.219e-05,2]
[397788200,1765229441637,-500.0,8.219e-05,2]
[397788202,1765229441646,-500.0,8.219e-05,2]
[397788204,1765229441656,-500.0,8.219e-05,2]
[397788206,1765229441665,-500.0,8.219e-05,2]
[397788208,1765229441675,-500.0,8.219e-05,2]
[397788210,1765229441684,-500.63084891,8.219e-05,2]
[397788212,1765229441694,-500.0,8.219e-05,2]
[397788214,1765229441703,-500.25126811,8.219e-05,2]
[397788216,1765229441712,-1193.62,8.219e-05,2]
[397788218,1765229441722,-500.0,8.219e-05,2]
[397788220,1765229441732,-500.0,8.219e-05,2]
[397788222,1765229441741,-500.0,8.219e-05,2]
[397788224,1765229441751,-609.07,8.219e-05,2]
[397788226,1765229441760,-500.0,8.219e-05,2]
[397788228,1765229441770,-500.0,8.219e-05,2]
[397788230,1765229441780,-500.0,8.219e-05,2]
[397788232,1765229441789,-510.19530624,8.219e-05,2]
[397788235,1765229441799,-500.0,8.219e-05,2]
[397788237,1765229441812,-500.0,8.219e-05,2]
[397788238,1765229441821,-500.0,8.219e-05,2]
[397788241,1765229441831,-500.0,8.219e-05,2]
[397788243,1765229441840,-500.0,8.219e-05,2]
[397788244,1765229441849,-500.1349077,8.219e-05,2]
[397788246,1765229441859,-500.0,8.219e-05,2]
[397788248,1765229441868,-500.0,8.219e-05,2]
[397788250,1765229441878,-500.32491146,8.219e-05,2]
[397788252,1765229441887,-500.76616921,8.219e-05,2]
[397788254,1765229441896,-571.72,8.219e-05,2]
[397788257,1765229441907,-500.0,8.219e-05,2]
[397788259,1765229441916,-500.0,8.219e-05,2]
[397788261,1765229441925,-950.51,8.219e-05,2]
[397788263,1765229441935,-500.0,8.219e-05,2]
[397788265,1765229441944,-500.0,8.219e-05,2]
[397788267,1765229441953,-1082.28,8.219e-05,2]
[397788269,1765229441962,-621.82,8.219e-05,2]
[397788271,1765229441972,-500.0,8.219e-05,2]
[397788273,1765229441982,-500.0,8.219e-05,2]
[397788275,1765229441991,-500.0,8.219e-05,2]
[397788277,1765229442001,-500.67866846,8.219e-05,2]
[397788279,1765229442010,-317.5676752,8.219e-05,2]
[397788281,1765229442023,-500.0,8.219e-05,2]
[397788283,1765229442035,-500.0,8.219e-05,2]
[397788285,1765229442045,-500.0,8.219e-05,2]
[397788287,1765229442054,-500.31545128,8.219e-05,2]
[397788289,1765229442066,-500.0,8.219e-05,2]
[397788291,1765229442076,-516.08,8.219e-05,2]
[397788293,1765229442086,-500.0,8.219e-05,2]
[397788295,1765229442096,-4716.71,8.219e-05,2]
[397788297,1765229442106,-500.0,8.219e-05,2]
[397788299,1765229442116,-500.0,8.219e-05,2]
[397788301,1765229442126,-500.0,8.219e-05,2]
[397788303,1765229442135,-500.0,8.219e-05,2]
[397788305,1765229442144,-500.0,8.219e-05,2]
[397788307,1765229442154,-500.0,8.219e-05,2]
[397788309,1765229442164,-500.0,8.219e-05,2]
[397788311,1765229442173,-500.16709056,8.219e-05,2]
[397788313,1765229442183,-500.24397567,8.219e-05,2]
[397788315,1765229442193,-500.0,8.219e-05,2]
[397788317,1765229442202,-2302.1,8.219e-05,2]
[397788319,1765229442212,-948.57,8.219e-05,2]
[397788321,1765229442221,-623.49290874,8.219e-05,2]
[397788323,1765229442230,-500.0,8.219e-05,2]
[397788324,1765229442239,-500.0,8.219e-05,2]
[397788326,1765229442250,-500.0,8.219e-05,2]
[397788329,1765229442260,-500.0,8.219e-05,2]
[397788330,1765229442269,-500.0,8.219e-05,2]
[397788333,1765229442279,-500.0,8.219e-05,2]
[397788335,1765229442288,-500.0,8.219e-05,2]
[397788337,1765229442297,-500.0,8.219e-05,2]
[397788339,1765229442308,-500.0,8.219e-05,2]
[397788341,1765229442317,-500.0,8.219e-05,2]
[397788343,1765229442329,-500.0,8.219e-05,2]
[397788345,1765229442338,-482.58680375,8.219e-05,2]
[397788347,1765229442348,-1154.84,8.219e-05,2]
[397788349,1765229442357,-500.58054038,8.219e-05,2]
[397788351,1765229442367,-500.0,8.219e-05,2]
[397788353,1765229442378,-500.0,8.219e-05,2]
[397788355,1765229442393,-1582.64,8.219e-05,2]
[397788357,1765229442403,-713.29,8.219e-05,2]
[397788359,1765229442413,-500.29102413,8.219e-05,2]
[397788361,1765229442423,-500.0,8.219e-05,2]
[397788363,1765229442432,-500.0,8.219e-05,2]
[397788376,1765229442672,-500.0,8.219e-05,2]
[397788377,1765229442683,-500.0,8.219e-05,2]
[397788378,1765229442693,-589.68,8.219e-05,2]
[397788379,1765229442702,-500.0,8.219e-05,2]
[397788380,1765229442712,-500.0,8.219e-05,2]
[397788381,1765229442721,-500.0,8.219e-05,2]
[397788382,1765229442730,-500.0,8.219e-05,2]
[397788383,1765229442740,-777.85,8.219e-05,2]
[397788384,1765229442749,-500.0,8.219e-05,2]
[397788385,1765229442759,-500.69036311,8.219e-05,2]
[397788386,1765229442768,-896.83,8.219e-05,2]
[397788387,1765229442778,-500.0,8.219e-05,2]
[397788389,1765229442787,-500.0,8.219e-05,2]
[397788391,1765229442796,-839.38,8.219e-05,2]
[397788393,1765229442806,-2314.45,8.219e-05,2]
[397788395,1765229442817,-656.61,8.219e-05,2]
[397788397,1765229442826,-690.71,8.219e-05,2]
[397788399,1765229442834,-1116.64,8.219e-05,2]
[397788401,1765229442844,-500.80559984,8.219e-05,2]
[397788403,1765229442853,-500.0,8.219e-05,2]
[397788405,1765229442862,-775.91,8.219e-05,2]
[397788407,1765229442872,-500.0,8.219e-05,2]
[397788409,1765229442881,-602.26,8.219e-05,2]
[397788411,1765229442890,-1472.26,8.219e-05,2]
[397788413,1765229442900,-500.0,8.219e-05,2]
[397788415,1765229442909,-1174.64,8.219e-05,2]
[397788417,1765229442919,-500.0,8.219e-05,2]
[397788419,1765229442928,-500.0,8.219e-05,2]
[397788421,1765229442937,-500.0,8.219e-05,2]
[397788423,1765229442947,-500.0,8.219e-05,2]
[397788425,1765229442955,-500.0,8.219e-05,2]
[397788427,1765229442964,-500.0,8.219e-05,2]
[397788429,1765229442974,-500.0,8.219e-05,2]
[397788431,1765229442983,-500.0,8.219e-05,2]
[397788433,1765229442992,-500.0,8.219e-05,2]
[397788435,1765229443001,-500.0,8.219e-05,2]
[397788437,1765229443010,-500.0,8.219e-05,2]
[397788439,1765229443024,-500.0,8.219e-05,2]
[397788442,1765229443033,-1162.95,8.219e-05,2]
[397788445,1765229443043,-500.0,8.219e-05,2]
[397788447,1765229443052,-500.0,8.219e-05,2]
[397788449,1765229443063,-998.21,8.219e-05,2]
[397788450,1765229443072,-604.8,8.219e-05,2]
[397788453,1765229443082,-1091.94,8.219e-05,2]
[397788455,1765229443093,-500.0,8.219e-05,2]
[397788456,1765229443103,-500.0,8.219e-05,2]
[397788459,1765229443113,-768.37,8.219e-05,2]
[397788461,1765229443123,-614.49,8.219e-05,2]
[397788463,1765229443132,-648.72,8.219e-05,2]
[397788464,1765229443141,-500.27327537,8.219e-05,2]
[397788466,1765229443151,-548.44105256,8.219e-05,2]
[397788469,1765229443160,-1971.33,8.219e-05,2]
[397788471,1765229443170,-500.0,8.219e-05,2]
[397788472,1765229443179,-724.9,8.219e-05,2]
[397788475,1765229443189,-1004.86,8.219e-05,2]
[397788476,1765229443198,-500.0,8.219e-05,2]
[397788478,1765229443208,-500.0,8.219e-05,2]
[397788480,1765229443217,-500.0,8.219e-05,2]
[397788483,1765229443228,-500.0,8.219e-05,2]
[397788484,1765229443237,-967.58,8.219e-05,2]
[397788487,1765229443247,-1608.07,8.219e-05,2]
[397788488,1765229443256,-500.0,8.219e-05,2]
[397788491,1765229443265,-1071.81695239,8.219e-05,2]
[397788493,1765229443277,-500.0,8.219e-05,2]
[397788494,1765229443286,-500.0,8.219e-05,2]
[397788496,1765229443296,-1903.54690744,8.219e-05,2]
[397788498,1765229443305,-500.0,8.219e-05,2]
[397788500,1765229443315,-1031.2,8.219e-05,2]
[397788502,1765229443325,-500.0,8.219e-05,2]
[397788504,1765229443334,-866.5,8.219e-05,2]
[397788506,1765229443344,-500.0,8.219e-05,2]
[397788508,1765229443353,-500.0,8.219e-05,2]
[397788510,1765229443363,-500.0,8.219e-05,2]
[397788513,1765229443372,-500.0,8.219e-05,2]
[397788515,1765229443382,-644.59,8.219e-05,2]
[397788516,1765229443392,-977.19,8.219e-05,2]
[397788519,1765229443402,-500.0,8.219e-05,2]
[397788520,1765229443412,-500.0,8.219e-05,2]
[397788522,1765229443423,-500.0,8.219e-05,2]
[397788524,1765229443433,-500.0,8.219e-05,2]
[397788527,1765229443443,-502.97,8.219e-05,2]
[397788529,1765229443454,-500.0,8.219e-05,2]
[397788531,1765229443463,-500.0,8.219e-05,2]
[397788533,1765229443473,-569.04126739,8.219e-05,2]
[397788535,1765229443482,-500.0,8.219e-05,2]
[397788537,1765229443491,-500.0,8.219e-05,2]
[397788539,1765229443501,-500.0,8.219e-05,2]
[397788541,1765229443510,-500.0,8.219e-05,2]
[397788543,1765229443519,-500.0,8.219e-05,2]
[397788545,1765229443529,-500.0,8.219e-05,2]
[397788547,1765229443538,-500.0,8.219e-05,2]
[397788549,1765229443548,-500.0,8.219e-05,2]
[397788551,1765229443557,-500.0,8.219e-05,2]
[397788553,1765229443568,-500.0,8.219e-05,2]
[397788554,1765229443577,-619.93,8.219e-05,2]
[397788557,1765229443588,-500.1795974,8.219e-05,2]
[397788559,1765229443598,-500.0,8.219e-05,2]
[397788560,1765229443608,-500.0,8.219e-05,2]
[397788562,1765229443617,-500.0,8.219e-05,2]
[397788564,1765229443626,-836.64,8.219e-05,2]
[397788566,1765229443636,-500.0,8.219e-05,2]
[397788568,1765229443645,-500.0,8.219e-05,2]